bitfinex/quotes_SOLUSD_20250414
["timestamp","ask_amount","ask_price","bid_price","bid_amount"]
[1744609320764,11.65489197,132.77,132.74,82.6]
[1744609320960,11.65489197,132.75,132.74,82.6]
[1744609321162,11.65489197,132.76,132.74,82.6]
[1744609321362,11.68489197,132.8,132.75,11.65489197]
[1744609321577,0.03,132.8,132.76,11.65489197]
[1744609321770,6.0541,132.8,132.76,11.65489197]
[1744609321957,17.70899197,132.8,132.76,11.65489197]
[1744609322270,17.70899197,132.8,132.75,82.6]
[1744609322271,11.65489197,132.79,132.75,82.6]
[1744609322472,11.65489197,132.77,132.75,82.6]
[1744609323267,11.65489197,132.76,132.73,82.6]
[1744609324381,6.0264,132.75,132.73,82.6]
[1744609324869,17.68129197,132.75,132.73,82.6]
[1744609325070,11.65489197,132.74,132.73,82.6]
[1744609325276,11.65489197,132.74,132.71,82.6]
[1744609326063,11.65489197,132.72,132.69,6.4164]
[1744609326284,11.65489197,132.71,132.69,0.0001]
[1744609326777,17.68219197,132.73,132.69,0.0001]
[1744609326983,17.68179197,132.74,132.69,11.65499197]
[1744609327179,6.0265,132.75,132.71,11.65489197]
[1744609327474,8.20216157,132.77,132.72,11.65489197]
[1744609327475,19.71489197,132.77,132.72,11.65489197]
[1744609328183,25.74039197,132.77,132.72,11.65489197]
[1744609328665,11.65489197,132.76,132.72,11.65489197]
[1744609329476,17.67999197,132.78,132.73,18.26629197]
[1744609329678,17.67999197,132.78,132.73,100.86629197]
[1744609330779,17.68039197,132.77,132.73,89.2114]
[1744609330977,11.65489197,132.76,132.73,89.2114]
[1744609331175,11.65489197,132.75,132.73,82.6]
[1744609331777,11.65489197,132.76,132.73,82.6]
[1744609333488,17.68089197,132.76,132.73,82.6]
[1744609335291,18.64964886,132.73,132.69,82.6001]
[1744609335496,30.30454083,132.7,132.69,82.6001]
[1744609335691,30.30454083,132.7,132.69,0.0001]
[1744609335997,38.49102554,132.7,132.69,0.0001]
[1744609337082,13.7886,132.7,132.69,0.0001]
[1744609337385,7.76,132.75,132.69,95.88319197]
[1744609337576,7.76,132.75,132.71,11.65489197]
[1744609337979,11.65489197,132.77,132.72,11.65489197]
[1744609338170,17.67989197,132.78,132.73,11.65489197]
[1744609339296,24.66547621,132.78,132.73,18.64047621]
[1744609339477,7.76,132.79,132.75,18.64047621]
[1744609340092,32.42507621,132.79,132.73,82.6]
[1744609340297,18.64047621,132.78,132.73,101.24047621]
[1744609341398,24.66577621,132.78,132.73,101.24047621]
[1744609342999,24.66577621,132.78,132.74,18.64047621]
[1744609346201,18.64047621,132.77,132.73,82.6]
[1744609347906,6.0253,132.78,132.73,82.6]
[1744609348219,6.0253,132.78,132.73,101.24047621]
[1744609348515,18.64047621,132.77,132.73,101.24047621]
[1744609349400,18.64047621,132.75,132.73,82.6]
[1744609349985,24.66707621,132.75,132.73,82.6]
[1744609350389,7.76,132.79,132.74,18.64047621]
[1744609350579,7.76,132.79,132.75,18.64047621]
[1744609351504,7.76,132.79,132.74,82.6]
[1744609351505,32.42497621,132.79,132.74,101.24047621]
[1744609352412,18.64047621,132.78,132.74,82.6]
[1744609352796,0.03,132.8,132.77,24.86337621]
[1744609352998,0.03,132.8,132.79,18.64047621]
[1744609353711,0.03,132.8,132.79,24.66497621]
[1744609355011,0.03,132.8,132.79,18.64047621]
[1744609355602,0.03,132.8,132.79,24.66497621]
[1744609356690,0.03,132.82,132.8,82.57]
[1744609356898,0.03,132.82,132.81,18.64047621]
[1744609357818,0.03,132.82,132.81,24.66407621]
[1744609358004,0.03,132.82,132.81,18.64047621]
[1744609358316,0.03,132.82,132.8,101.21047621]
[1744609360091,18.67047621,132.82,132.8,82.57]
[1744609360515,0.03,132.82,132.8,82.57]
[1744609363594,0.03,132.82,132.8,107.23447621]
[1744609363799,0.03,132.82,132.8,82.57]
[1744609364406,6.0531,132.82,132.8,82.57]
[1744609364614,0.03,132.82,132.8,82.57]
[1744609367520,0.03,132.82,132.81,18.64047621]
[1744609368613,0.03,132.82,132.81,101.21047621]
[1744609371322,0.03,132.82,132.81,94.20516276]
[1744609372427,0.03,132.82,132.81,100.22876276]
[1744609373623,0.03,132.83,132.82,82.54]
[1744609373930,0.03,132.83,132.82,94.17516276]
[1744609374431,0.03,132.83,132.82,102.19476276]
[1744609375733,0.03,132.83,132.82,108.21786276]
[1744609377430,0.03,132.83,132.82,96.5827]
[1744609377621,0.03,132.83,132.82,82.54]
[1744609379226,11.66516276,132.83,132.79,82.54]
[1744609379831,0.03,132.83,132.8,11.63516276]
[1744609380031,0.03,132.83,132.81,11.63516276]
[1744609381245,11.66516276,132.83,132.8,82.54]
[1744609381824,0.03,132.83,132.8,82.54]
[1744609382744,11.66516276,132.83,132.8,82.54]
[1744609383138,18.79181043,132.8,132.74,0.063]
[1744609383431,30.28481162,132.75,132.74,0.063]
[1744609383631,37.92481162,132.75,132.74,0.063]
[1744609385440,43.95111162,132.75,132.74,0.063]
[1744609386534,18.64964886,132.74,132.69,0.0001]
[1744609386742,11.63516276,132.71,132.69,0.0001]
[1744609387119,18.65834197,132.71,132.69,0.0001]
[1744609387315,18.65834197,132.7,132.69,0.0001]
[1744609387538,24.68694197,132.7,132.69,0.0001]
[1744609388124,6.0286,132.7,132.69,0.0001]
[1744609389146,24.68694197,132.7,132.69,0.0001]
[1744609391147,43.33659083,132.7,132.69,0.0001]
[1744609391331,51.40307554,132.7,132.69,0.0001]
[1744609391847,51.1187524,132.7,132.69,0.0001]
[1744609392448,24.68694197,132.7,132.69,0.0001]
[1744609392659,13.6686,132.7,132.69,0.0001]
[1744609393139,7.64,132.72,132.69,101.19844197]
[1744609393460,26.29834197,132.74,132.69,101.19844197]
[1744609394149,24.68574197,132.73,132.69,82.5401]
[1744609394733,6.0259,132.76,132.7,18.65834197]
[1744609395045,18.65834197,132.75,132.7,18.65834197]
[1744609395246,18.65834197,132.75,132.7,101.19834197]
[1744609395545,7.48,132.76,132.73,18.65834197]
[1744609395725,24.68344197,132.78,132.73,101.19834197]
[1744609395930,13.5051,132.78,132.74,18.65834197]
[1744609396139,32.16344197,132.78,132.73,101.19834197]
[1744609396842,26.13834197,132.78,132.73,107.22554197]
[1744609397039,7.48,132.78,132.75,18.65834197]
[1744609397440,6.0245,132.79,132.75,18.65834197]
[1744609397635,6.0245,132.79,132.75,101.19834197]
[1744609398038,24.68234197,132.8,132.75,101.19834197]
[1744609398244,18.65834197,132.81,132.76,18.65834197]
[1744609398452,24.68194197,132.81,132.76,101.19834197]
[1744609398638,24.68194197,132.81,132.77,18.65834197]
[1744609399338,6.0236,132.81,132.77,18.65834197]
[1744609399531,18.65834197,132.8,132.76,82.54]
[1744609399733,18.65834197,132.79,132.76,82.54]
[1744609401248,18.65834197,132.78,132.76,82.54]
[1744609401633,24.68374197,132.77,132.73,90.6497]
[1744609401833,24.68374197,132.77,132.73,89.0826]
[1744609402257,6.0254,132.77,132.73,89.0826]
[1744609402437,24.68374197,132.77,132.73,89.0826]
[1744609403653,18.65834197,132.76,132.73,89.0826]
[1744609404431,18.65834197,132.74,132.71,82.54]
[1744609404637,55.9663328,132.72,132.71,82.54]
[1744609404837,55.9663328,132.72,132.69,0.0001]
[1744609405045,18.65834197,132.7,132.69,0.0001]
[1744609405555,37.30799083,132.7,132.69,0.0001]
[1744609406061,43.33659083,132.7,132.69,0.0001]
[1744609406261,24.68694197,132.7,132.69,0.0001]
[1744609406445,6.0277,132.72,132.69,0.0001]
[1744609406643,24.68604197,132.72,132.69,0.0001]
[1744609407161,24.68604197,132.72,132.69,82.5401]
[1744609407757,32.14574197,132.73,132.69,82.5401]
[1744609408465,18.65834197,132.72,132.69,82.5401]
[1744609408862,13.4874,132.73,132.69,82.5401]
[1744609408863,18.65834197,132.71,132.69,82.5401]
[1744609409067,18.65834197,132.72,132.69,82.5401]
[1744609409867,24.68644197,132.72,132.69,82.5401]
[1744609412363,18.65834197,132.71,132.69,82.5401]
[1744609413376,7.46,132.73,132.69,82.5401]
[1744609413553,18.65834197,132.72,132.69,82.5401]
[1744609414579,18.65834197,132.74,132.69,82.5401]
[1744609414891,18.64964886,132.76,132.69,82.5401]
[1744609414892,18.65834197,132.72,132.69,82.5401]
[1744609415256,11.6611676,132.72,132.69,82.5401]
[1744609415678,21.0924,132.75,132.69,82.5401]
[1744609415982,11.6611676,132.72,132.69,82.5401]
[1744609416887,17.6890676,132.72,132.69,82.5401]
[1744609417063,17.6888676,132.72,132.69,82.5401]
[1744609417246,11.6611676,132.71,132.69,82.5401]
[1744609417667,17.6888676,132.72,132.69,82.5401]
[1744609418579,6.0277,132.72,132.69,82.5401]
[1744609419181,7.48,132.74,132.69,82.5401]
[1744609419356,11.6611676,132.74,132.69,94.2012676]
[1744609419873,11.6611676,132.72,132.69,82.5401]
[1744609421174,11.6611676,132.7,132.69,82.5401]
[1744609421752,17.6893676,132.71,132.69,82.5401]
[1744609422162,11.6611676,132.7,132.69,82.5401]
[1744609422893,6.0282,132.71,132.69,82.5401]
[1744609422894,17.6893676,132.71,132.69,82.5401]
[1744609423493,11.6611676,132.71,132.69,82.5401]
[1744609423870,17.6892676,132.71,132.69,82.5401]
[1744609424064,11.6611676,132.7,132.69,82.5401]
[1744609424265,11.6611676,132.7,132.69,0.0001]
[1744609426178,17.6897676,132.7,132.69,0.0001]
[1744609429110,36.48157803,132.7,132.69,0.0001]
[1744609429904,36.33941646,132.7,132.69,0.0001]
[1744609430112,17.6897676,132.7,132.69,0.0001]
[1744609431301,17.6894676,132.71,132.69,0.0001]
[1744609431931,17.6894676,132.71,132.69,82.5401]
[1744609433593,11.6611676,132.7,132.69,82.5401]
[1744609435530,30.73730117,132.7,132.69,0.0001]
[1744609435820,36.76590117,132.7,132.69,0.0001]
[1744609437925,40.50053543,132.7,132.69,0.0001]
[1744609438320,46.47456464,132.7,132.69,0.0001]
[1744609439498,36.48157803,132.7,132.69,0.0001]
[1744609439702,17.6897676,132.7,132.69,0.0001]
[1744609441356,17.6889676,132.72,132.69,82.5401]
[1744609442327,17.6892676,132.71,132.69,82.5401]
[1744609442736,6.0281,132.71,132.69,82.5401]
[1744609443219,11.6611676,132.7,132.69,82.5401]
[1744609444423,17.6897676,132.7,132.69,82.5401]
[1744609444625,17.6894676,132.71,132.69,82.5401]
[1744609445120,11.6611676,132.7,132.69,82.5401]
[1744609446230,26.0,132.67,132.66,0.063]
[1744609446414,17.6924676,132.64,132.59,6.6351]
[1744609446727,11.6611676,132.6,132.59,6.6351]
[1744609446934,11.6611676,132.61,132.59,6.6351]
[1744609447506,11.6611676,132.6,132.55,6.6351]
[1744609447711,11.6611676,132.6,132.55,89.1751]
[1744609448128,11.6611676,132.58,132.55,89.1751]
[1744609448331,17.6958676,132.57,132.55,89.1751]
[1744609448633,7.36,132.58,132.55,89.1751]
[1744609448931,11.6611676,132.56,132.55,82.54]
[1744609449126,18.70291548,132.56,132.55,82.54]
[1744609449329,13.3942,132.58,132.55,82.54]
[1744609449536,18.70291548,132.57,132.55,82.54]
[1744609449842,18.70291548,132.56,132.55,82.54]
[1744609450023,18.70291548,132.56,132.51,2.6258862]
[1744609450210,18.70291548,132.55,132.51,2.6258862]
[1744609450406,24.73901548,132.54,132.51,2.6258862]
[1744609451640,24.73901548,132.54,132.51,85.1658862]
[1744609451847,18.70291548,132.55,132.51,85.1658862]
[1744609452145,18.70291548,132.54,132.51,85.1658862]
[1744609452635,18.70291548,132.55,132.51,85.1658862]
[1744609453640,18.70291548,132.53,132.51,85.1658862]
[1744609453850,21.1225,132.56,132.51,85.1658862]
[1744609453851,24.73971548,132.52,132.51,85.1658862]
[1744609454741,24.73971548,132.52,132.51,2.6258862]
[1744609454940,6.0368,132.52,132.51,2.6258862]
[1744609455235,15.0898,132.54,132.51,2.6258862]
[1744609455236,18.70291548,132.53,132.51,2.6258862]
[1744609455740,6.0368,132.52,132.51,2.6258862]
[1744609455941,24.73971548,132.52,132.51,2.6258862]
[1744609456377,43.38936434,132.52,132.51,2.6258862]
[1744609456522,24.73971548,132.52,132.51,2.6258862]
[1744609456848,6.0368,132.52,132.51,2.6258862]
[1744609457231,24.73971548,132.52,132.51,2.6258862]
[1744609457449,6.0368,132.52,132.51,2.6258862]
[1744609457744,24.73971548,132.52,132.51,2.6258862]
[1744609458450,6.0368,132.52,132.51,2.6258862]
[1744609458640,43.53152591,132.52,132.51,8.62e-05]
[1744609458839,0.14216157,132.51,132.47,82.54]
[1744609459140,18.70291548,132.48,132.47,82.54]
[1744609459341,18.64964886,132.47,132.45,0.063]
[1744609459521,18.70291548,132.48,132.45,0.063]
[1744609459724,18.70291548,132.47,132.45,0.063]
[1744609459925,18.70291548,132.46,132.45,0.063]
[1744609460663,6.0386,132.48,132.45,0.063]
[1744609460858,18.70291548,132.46,132.45,0.063]
[1744609461165,6.0386,132.48,132.45,0.063]
[1744609461344,18.70291548,132.46,132.45,0.063]
[1744609461743,24.74111548,132.49,132.45,82.663]
[1744609462553,18.70291548,132.49,132.45,82.663]
[1744609462759,18.70291548,132.5,132.45,107.40571548]
[1744609463062,18.70291548,132.51,132.46,18.70291548]
[1744609463267,18.70291548,132.49,132.45,0.063]
[1744609463568,18.70291548,132.48,132.45,0.063]
[1744609463877,24.74071548,132.5,132.45,18.76591548]
[1744609465961,6.0378,132.5,132.45,0.063]
[1744609466154,18.70291548,132.49,132.45,18.76591548]
[1744609466672,18.70291548,132.49,132.45,0.063]
[1744609466969,18.70291548,132.47,132.45,0.063]
[1744609467370,18.70291548,132.46,132.45,0.063]
[1744609467964,24.74241548,132.46,132.45,0.063]
[1744609469255,58.49086434,132.46,132.41,82.663]
[1744609469449,18.70291548,132.43,132.41,82.663]
[1744609469655,18.70291548,132.44,132.41,82.663]
[1744609469951,18.70291548,132.42,132.41,0.063]
[1744609470151,18.64964886,132.41,132.39,0.063]
[1744609470354,18.70291548,132.4,132.39,0.063]
[1744609471170,37.35256434,132.4,132.33,6.1308]
[1744609471361,18.70291548,132.37,132.33,88.7308]
[1744609471969,6.0436,132.37,132.33,107.43371548]
[1744609472672,6.0427,132.39,132.33,94.7762]
[1744609472977,6.0427,132.39,132.33,88.7308]
[1744609472978,18.70291548,132.38,132.33,88.7308]
[1744609473156,6.0427,132.39,132.34,18.70291548]
[1744609473350,18.70291548,132.41,132.33,94.7761]
[1744609473569,18.70291548,132.38,132.33,88.7308]
[1744609474075,18.70291548,132.38,132.33,107.43371548]
[1744609474076,6.0436,132.37,132.33,107.43371548]
[1744609474672,24.74621548,132.38,132.33,107.43371548]
[1744609474974,6.0433,132.38,132.34,18.70291548]
[1744609475152,11.72223713,132.36,132.33,82.6]
[1744609475354,21.1513,132.38,132.33,82.6]
[1744609475355,11.72223713,132.35,132.33,82.6]
[1744609475558,21.1513,132.38,132.33,82.6]
[1744609475559,11.72223713,132.36,132.33,82.6]
[1744609475759,11.72223713,132.37,132.33,82.6]
[1744609476065,6.0441,132.36,132.33,82.6]
[1744609476673,6.0441,132.36,132.33,94.32223713]
[1744609476868,6.0438,132.37,132.33,94.32223713]
[1744609477179,17.76493713,132.39,132.34,11.72223713]
[1744609477360,6.0427,132.39,132.35,11.72223713]
[1744609477557,6.0424,132.4,132.36,11.72223713]
[1744609477770,6.0424,132.4,132.37,11.72223713]
[1744609477975,17.76403713,132.41,132.36,17.85303713]
[1744609479072,11.72223713,132.4,132.36,6.1308]
[1744609479771,11.72223713,132.38,132.35,82.6]
[1744609480278,6.0436,132.37,132.35,82.6]
[1744609480661,11.72223713,132.36,132.32,6.1308]
[1744609480976,11.72223713,132.34,132.29,11.72223713]
[1744609482166,17.76763713,132.33,132.28,17.85303713]
[1744609482369,11.72223713,132.32,132.28,6.1308]
[1744609482773,17.76763713,132.33,132.28,17.85303713]
[1744609482974,6.0454,132.33,132.29,11.72223713]
[1744609483175,18.7636757,132.32,132.27,0.063]
[1744609483364,18.64964886,132.32,132.27,0.063]
[1744609483569,18.7636757,132.32,132.27,18.8266757]
[1744609483953,18.7636757,132.31,132.27,0.063]
[1744609484161,43.46102456,132.28,132.24,2.6258862]
[1744609484363,18.7636757,132.26,132.24,2.6258862]
[1744609484562,24.69734886,132.28,132.24,2.6258862]
[1744609484563,39.9307757,132.28,132.24,2.6258862]
[1744609484982,21.1671,132.28,132.24,21.3895619]
[1744609485278,39.9307757,132.28,132.24,2.6258862]
[1744609486071,24.8127757,132.25,132.24,2.6258862]
[1744609487591,6.0491,132.25,132.24,2.6258862]
[1744609487764,24.8127757,132.25,132.24,2.6258862]
[1744609487965,24.8127757,132.25,132.24,8.62e-05]
[1744609488168,43.46242456,132.25,132.24,8.62e-05]
[1744609488373,62.22610026,132.25,132.24,8.62e-05]
[1744609488571,70.12826183,132.25,132.24,8.62e-05]
[1744609488875,69.98610026,132.25,132.24,8.62e-05]
[1744609489787,18.79181043,132.24,132.19,0.063]
[1744609489978,18.7636757,132.2,132.19,0.063]
[1744609490367,37.41332456,132.24,132.19,0.063]
[1744609490686,28.9319,132.25,132.16,6.1308]
[1744609490991,18.7636757,132.23,132.19,18.7636757]
[1744609491185,18.7636757,132.23,132.18,18.8266757]
[1744609491487,18.7636757,132.23,132.18,0.063]
[1744609491669,28.9319,132.25,132.18,18.8266757]
[1744609491871,18.7636757,132.21,132.18,0.063]
[1744609492072,37.41332456,132.24,132.18,0.063]
[1744609492073,18.7636757,132.24,132.18,0.063]
[1744609492389,18.7636757,132.22,132.18,0.063]
[1744609493196,18.7636757,132.21,132.18,0.063]
[1744609493779,24.8149757,132.21,132.18,0.063]
[1744609494687,18.7636757,132.2,132.18,0.063]
[1744609494894,18.7636757,132.19,132.18,0.063]
[1744609495471,18.7636757,132.2,132.18,0.063]
[1744609495692,6.0513,132.21,132.18,18.8266757]
[1744609497077,24.8132757,132.24,132.19,18.7636757]
[1744609500292,24.8128757,132.25,132.21,18.7636757]
[1744609500494,6.0492,132.25,132.22,18.7636757]
[1744609500698,6.0492,132.25,132.22,101.3636757]
[1744609500875,6.0492,132.25,132.22,82.6]
[1744609501075,24.8128757,132.25,132.22,82.6]
[1744609501279,18.7636757,132.23,132.18,0.063]
[1744609501513,18.7636757,132.2,132.18,0.063]
[1744609501994,18.7636757,132.19,132.18,0.063]
[1744609502294,6.0518,132.19,132.18,0.063]
[1744609502497,24.8154757,132.19,132.18,0.063]
[1744609503894,6.0518,132.19,132.18,0.063]
[1744609504199,18.7636757,132.2,132.18,0.063]
[1744609504496,18.64964886,132.18,132.12,6.4696]
[1744609504685,37.41332456,132.18,132.12,6.4696]
[1744609504886,18.7636757,132.16,132.12,6.4696]
[1744609505797,18.7636757,132.17,132.12,31.2882757]
[1744609505978,18.7636757,132.22,132.16,18.7636757]
[1744609506179,6.05,132.23,132.19,18.7636757]
[1744609506380,18.7636757,132.25,132.2,18.7636757]
[1744609506589,6.0482,132.27,132.21,18.7636757]
[1744609506788,11.7077531,132.31,132.24,18.7636757]
[1744609506999,18.7636757,132.29,132.24,18.7636757]
[1744609507997,18.7936757,132.31,132.26,18.7636757]
[1744609508300,0.03,132.31,132.27,18.7636757]
[1744609508509,18.7936757,132.31,132.26,18.7636757]
[1744609508802,18.7636757,132.3,132.25,18.7636757]
[1744609508999,18.7936757,132.31,132.26,18.7636757]
[1744609509199,0.03,132.31,132.29,18.7636757]
[1744609510683,18.7636757,132.35,132.3,18.7636757]
[1744609510884,18.64964886,132.38,132.3,18.7636757]
[1744609511079,18.7636757,132.35,132.31,18.7636757]
[1744609511298,18.7636757,132.35,132.3,18.7636757]
[1744609511699,6.0436,132.37,132.31,18.7636757]
[1744609511895,6.0436,132.37,132.33,18.7636757]
[1744609512096,6.0433,132.38,132.33,18.7636757]
[1744609512295,0.03,132.39,132.34,18.7636757]
[1744609512501,0.03,132.39,132.35,18.7636757]
[1744609512687,24.8363757,132.39,132.31,6.0464]
[1744609512893,6.0727,132.39,132.35,18.7636757]
[1744609513208,0.03,132.39,132.35,18.7636757]
[1744609513395,6.0727,132.39,132.36,18.7636757]
[1744609513891,0.03,132.39,132.37,18.7636757]
[1744609514096,0.03,132.39,132.38,18.7636757]
[1744609514404,0.03,132.39,132.35,6.0444]
[1744609514405,0.03,132.39,132.36,18.7636757]
[1744609514605,0.03,132.39,132.38,18.7636757]
[1744609515404,0.03,132.39,132.35,96.4044]
[1744609515708,0.03,132.39,132.38,18.7636757]
[1744609516292,0.03,132.39,132.38,25.0826757]
[1744609517698,0.03,132.39,132.38,31.1258757]
[1744609517897,0.03,132.39,132.38,31.55236041]
[1744609518802,0.03,132.39,132.38,31.1258757]
[1744609519196,0.03,132.39,132.38,25.0826757]
[1744609519406,0.03,132.39,132.38,113.7258757]
[1744609519808,0.03,132.39,132.38,114.15236041]
[1744609520294,0.03,132.44,132.39,82.57]
[1744609520499,0.03,132.44,132.43,18.7636757]
[1744609523605,0.03,132.44,132.41,18.7636757]
[1744609523947,0.03,132.44,132.4,18.7636757]
[1744609524219,0.03,132.44,132.42,18.7636757]
[1744609524595,0.03,132.44,132.43,18.7636757]
[1744609524799,0.03,132.44,132.43,101.3336757]
[1744609526620,0.03,132.44,132.43,107.3745757]
[1744609528715,0.03,132.44,132.43,101.3336757]
[1744609530312,0.03,132.44,132.43,82.57]
[1744609531031,0.03,132.44,132.43,101.3336757]
[1744609531725,0.03,132.44,132.43,107.3745757]
[1744609532231,0.03,132.45,132.44,101.3036757]
[1744609533011,0.03,132.45,132.44,107.3440757]
[1744609533209,0.03,132.45,132.44,101.3036757]
[1744609533718,0.03,132.45,132.44,107.3440757]
[1744609533916,0.03,132.45,132.44,82.54]
[1744609534218,0.03,132.45,132.44,101.3036757]
[1744609534421,0.03,132.45,132.44,82.54]
[1744609534626,0.03,132.45,132.44,101.3036757]
[1744609536329,0.03,132.45,132.44,107.3440757]
[1744609539840,0.03,132.45,132.44,101.3036757]
[1744609540224,0.03,132.45,132.44,107.3440757]
[1744609540733,0.03,132.45,132.44,82.54]
[1744609541632,0.03,132.45,132.44,94.24428028]
[1744609542221,0.03,132.45,132.44,100.28468028]
[1744609543141,0.03,132.45,132.39,82.54]
[1744609543321,0.03,132.45,132.41,11.70428028]
[1744609543728,0.03,132.45,132.39,82.54]
[1744609543729,6.07,132.45,132.42,11.70428028]
[1744609544229,6.07,132.45,132.41,11.70428028]
[1744609545542,17.77428028,132.45,132.4,11.70428028]
[1744609545843,6.07,132.45,132.41,11.70428028]
[1744609546927,17.77428028,132.45,132.4,11.70428028]
[1744609547235,24.80239623,132.45,132.4,18.73239623]
[1744609548844,24.80239623,132.45,132.39,82.54]
[1744609549143,24.80239623,132.45,132.4,18.73239623]
[1744609551641,24.80239623,132.45,132.39,82.54]
[1744609551845,18.73239623,132.44,132.39,82.54]
[1744609552042,26.0,132.38,132.37,0.063]
[1744609552241,63.38204509,132.38,132.37,0.063]
[1744609552423,52.25239623,132.38,132.31,82.54]
[1744609552628,18.73239623,132.36,132.31,101.27239623]
[1744609553336,6.0445,132.35,132.31,101.27239623]
[1744609553931,6.0445,132.35,132.34,0.063]
[1744609554251,6.0442,132.36,132.34,0.063]
[1744609554660,24.77659623,132.36,132.34,0.063]
[1744609555540,18.73239623,132.35,132.34,0.063]
[1744609556248,24.77659623,132.36,132.34,0.063]
[1744609556449,1.598,132.34,132.29,82.54]
[1744609556749,18.73239623,132.3,132.28,0.063]
[1744609557335,18.73239623,132.29,132.28,0.063]
[1744609557639,1.598,132.27,132.2,18.79539623]
[1744609557843,1.598,132.27,132.21,18.73239623]
[1744609557844,18.73239623,132.26,132.21,18.73239623]
[1744609558051,1.598,132.27,132.2,0.063]
[1744609558052,1.598,132.27,132.22,18.73239623]
[1744609558239,20.33039623,132.27,132.22,18.73239623]
[1744609558448,18.73239623,132.26,132.2,0.063]
[1744609558654,18.73239623,132.26,132.21,18.73239623]
[1744609558840,18.73239623,132.26,132.2,0.063]
[1744609559040,20.33039623,132.27,132.21,18.73239623]
[1744609559255,20.33039623,132.27,132.2,0.063]
[1744609559559,18.73239623,132.25,132.2,18.79539623]
[1744609559759,24.78099623,132.26,132.2,18.79539623]
[1744609560053,6.0486,132.26,132.21,18.73239623]
[1744609560255,18.73239623,132.25,132.2,18.79539623]
[1744609560468,18.73239623,132.23,132.2,0.063]
[1744609560958,18.73239623,132.21,132.2,0.063]
[1744609561254,38.98004509,132.21,132.13,82.54]
[1744609561437,6.0514,132.2,132.14,18.73239623]
[1744609561632,7.82,132.22,132.18,18.73239623]
[1744609561860,18.73239623,132.23,132.18,18.73239623]
[1744609562044,18.73239623,132.24,132.19,18.73239623]
[1744609562644,7.6472,132.25,132.2,18.73239623]
[1744609562845,24.78069623,132.27,132.22,18.73239623]
[1744609563046,6.0483,132.27,132.23,18.73239623]
[1744609563653,1.598,132.29,132.24,18.73239623]
[1744609563861,28.69824491,132.31,132.26,18.73239623]
[1744609564053,24.77889623,132.31,132.26,18.73239623]
[1744609565138,24.77889623,132.31,132.2,97.6677]
[1744609565139,24.77839623,132.32,132.27,18.73239623]
[1744609565462,24.77839623,132.32,132.25,6.0489]
[1744609565644,18.73239623,132.3,132.25,18.73239623]
[1744609565839,18.73239623,132.3,132.21,82.54]
[1744609565840,18.73239623,132.27,132.21,82.54]
[1744609566040,18.73239623,132.27,132.18,18.73239623]
[1744609566041,18.73239623,132.23,132.18,18.73239623]
[1744609566255,18.73239623,132.22,132.17,101.27239623]
[1744609566761,18.73239623,132.24,132.19,18.73239623]
[1744609567159,24.78239623,132.23,132.18,18.73239623]
[1744609567756,6.0492,132.25,132.2,18.73239623]
[1744609567954,18.73239623,132.28,132.23,18.73239623]
[1744609568154,18.73239623,132.28,132.24,18.73239623]
[1744609568355,18.73239623,132.27,132.2,82.54]
[1744609568557,18.73239623,132.28,132.23,18.73239623]
[1744609568951,6.0477,132.28,132.24,18.73239623]
[1744609569661,35.27404886,132.31,132.24,18.73239623]
[1744609569662,7.5538,132.31,132.27,18.73239623]
[1744609569865,6.0464,132.31,132.27,18.73239623]
[1744609570766,24.69604886,132.31,132.24,82.54]
[1744609571068,18.73239623,132.27,132.24,82.54]
[1744609571445,18.64964886,132.3,132.24,82.54]
[1744609571647,18.73239623,132.28,132.24,82.54]
[1744609572166,18.64964886,132.3,132.24,82.54]
[1744609572167,18.73239623,132.27,132.24,82.54]
[1744609572362,18.73239623,132.28,132.24,82.54]
[1744609572774,18.73239623,132.27,132.24,82.54]
[1744609573064,33.76824886,132.29,132.24,82.54]
[1744609573065,18.73239623,132.25,132.24,82.54]
[1744609573459,18.73239623,132.26,132.24,82.54]